Cogmind - Beta 17 *** ADVENTURER MODE // 2026.07.29 @ 15:38:20 Player: Bullet Bait Result: Destroyed by F4-F7G(R) with Subdweller Laser Performance ------------- Evolutions (0) 0 Regions Visited (2) 400 Robots Destroyed (10) 50 Value Destroyed (186) 186 Prototype IDs (2) 40 Alien Tech Used (0) 0 Bonus (0) 0 TOTAL SCORE: 676 Bonus ------- None Cogmind --------- Core Integrity 0/250 Matter 240/300 Energy 54/100 System Corruption 0% Temperature Cool (6) Movement Rolling (110) Location -10/Subcaves Parts ------- > --- POWER (1) -------- (None) > --- PROPULSION (2) --- Subdweller Monowheel > --- UTILITY (2) ------ (None) > --- WEAPON (2) ------- Subdweller Laser > --- INVENTORY (5) ---- (None) Peak State ------------ > --- POWER ------------ Subdweller Power Source > --- PROPULSION ------- Aluminum Leg Aluminum Leg > --- UTILITY ---------- Scrap Shield > --- WEAPON ----------- Medium Laser Assault Rifle > --- INVENTORY -------- Light Ion Engine Light Armor Plating Assault Rifle Light Assault Rifle Light Assault Rifle [Rating: 10] Favorites ----------- Power Light Ion Engine Engine Light Ion Engine Propulsion Aluminum Leg Leg Aluminum Leg Wheel Subdweller Monowheel Utility Scrap Shield Device Tractor Beam Processor Targeting Computer Protection Scrap Shield Weapon Medium Laser Energy Gun Medium Laser Ballistic Gun Assault Rifle Build | -11 -10 -10 ------- Run | Yrd Mat Sub Slots Evolved . | . . . Power . | . . . Propulsion . | . . . Utility . | . . . Weapon . | . . . Parts Attached 17 | 3 7 7 Power 4 | 1 1 2 Engine 4 | 1 1 2 Core . | . . . Reactor . | . . . Propulsion 3 | 2 . 1 Treads . | . . . Leg 2 | 2 . . Wheel 1 | . . 1 Hover . | . . . Flight . | . . . Utility 4 | . 3 1 Device 1 | . 1 . Storage . | . . . Processor 1 | . 1 . Hackware . | . . . Protection 2 | . 1 1 Artifact . | . . . Weapon 6 | . 3 3 Energy Gun 2 | . 1 1 Energy Cannon . | . . . Ballistic Gun 4 | . 2 2 Ballistic Cannon . | . . . Launcher . | . . . Special Weapon . | . . . Impact Weapon . | . . . Slashing Weapon . | . . . Piercing Weapon . | . . . Special Melee Weapon . | . . . Unidentified Prototypes . | . . . Parts Lost 10 | . . 10 Power 2 | . . 2 Propulsion 2 | . . 2 Utility 2 | . . 2 Weapon 4 | . . 4 Highest Loss Streak 10 | . . 10 To Critical Strikes . | . . . Average Backups 3 | 1 3 4 Power . | . 1 . Propulsion . | . . . Utility . | . . . Weapon 2 | 1 2 2 Tool/Special . | . . . Unused Backups 1 | . . 1 Power . | . . . Propulsion . | . . . Utility . | . . . Weapon 1 | . . 1 Tool/Special . | . . . Average Slot Usage (%) 83 | . 87 81 Engine 13 | . 14 13 Leg 26 | . 28 25 Device 1 | . 2 . Processor 3 | . 9 . Protection 9 | . 4 13 Energy Gun 12 | . 13 12 Ballistic Gun 14 | . 14 14 Peak Build Rating 10 | 3 7 10 Average Rating 7 | 2 6 8 On Entrance 3 | . 3 7 Avg Prop Armor Cover (%) . | . . . Naked Turns . | . . . Heaviest Build 27 | 3 10 27 Greatest Support 20 | 20 20 20 Greatest Overweight (x) 3 | . . 3 Average Overweight (x) . | . . . Largest Inventory Capacity 5 | 5 5 5 Average Capacity 5 | 5 5 5 Most Carried 5 | 4 5 5 Average Carried 3 | 2 3 4 Final Capacity 5 | 5 5 5 Final Carried 4 | 4 4 . Class Distribution -------------------- 100% | Mutant Dominant Class ---------------- Mutant | -10/Materials Mutant | -10/Subcaves Resources | -11 -10 -10 ----------- Run | Yrd Mat Sub Matter Collected 454 | 230 132 92 Remotely 35 | . 35 . Salvage Created 208 | . 104 104 Parts 16 | . 9 7 Haulers Intercepted . | . . . Recyclers Shooed . | . . . Parts Field Recycled . | . . . Retrieved Matter . | . . . Parts Self-Destructed 9 | . . 9 Prevented . | . . . Parts Restored . | . . . Kills | -11 -10 -10 ------- Run | Yrd Mat Sub Combat Hostiles Destroyed 7 | . 4 3 Guns 7 | . 4 3 Classes Destroyed 5 | . 3 2 Turret 1 | . . 1 Watcher 2 | . 2 . Swarmer 5 | . 3 2 Grunt 1 | . 1 . Subdweller 1 | . . 1 Best Kill Streak 4 | . 3 4 Combat Bots Only 3 | . 3 2 Max Kills in Single Turn 1 | . 1 1 Gunslinging . | . . . Exploded . | . . . Melee . | . . . Uniques/NPCs Destroyed . | . . . Combat | -11 -10 -10 -------- Run | Yrd Mat Sub Hostile Shots Fired 153 | . 32 121 Missed 44 | . 6 38 Hits 109 | . 26 83 Projectile 109 | . 26 83 Critical Strikes 1 | . . 1 Damage Taken 1316 | . 182 1134 Core 261 | . 29 232 Absorbed by Shields . | . . . Ignored by Resistances 385 | . 57 328 Core Remaining (%) 100 | 100 . . Volleys Fired 53 | . 18 35 Largest 2 | . 2 2 Hottest 70 | . 70 70 Shots Fired 92 | . 36 56 Gun 92 | . 36 56 Cannon . | . . . Launcher . | . . . Special . | . . . Kinetic 52 | . 18 34 Thermal 40 | . 18 22 Explosive . | . . . Electromagnetic . | . . . Robot Hit Streak 17 | . 8 17 Robot Miss Streak 2 | . 2 2 Penetration Max . | . . . Secondary Targets 1 | . . 1 Max Gunslinging Chain 1 | . . 1 Shots Hit Robots 50 | . 20 30 Core Hits 15 | . 8 7 Critical Kills . | . . . Critical Parts Destroyed 1 | . 1 . Critical Strikes 2 | . 2 . Burn 1 | . 1 . Destroy 1 | . 1 . Melee Attacks . | . . . Impact . | . . . Slashing . | . . . Piercing . | . . . Sneak Attacks . | . . . Combat Hostiles . | . . . Follow-up Attacks . | . . . Damage Inflicted 447 | . 242 205 Guns 447 | . 242 205 Cannons . | . . . Explosions . | . . . Melee . | . . . Ramming . | . . . Kinetic 212 | . 105 107 Thermal 235 | . 137 98 Explosive . | . . . Electromagnetic . | . . . Impact . | . . . Slashing . | . . . Piercing . | . . . Highest Corruption . | . . . Average Corruption . | . . . Corruption Purged . | . . . Corruption Blocked . | . . . Overload Shots . | . . . Overflow Damage . | . . . Projectiles . | . . . Explosions . | . . . Melee . | . . . Knockbacks . | . . . Impact . | . . . Kinetic . | . . . Secondary . | . . . Self-Inflicted Damage . | . . . Shots . | . . . Rammed . | . . . Targets Rammed . | . . . Kicked . | . . . Crushed . | . . . Highest Temperature 105 | . 105 10 Average Temperature 29 | . 29 7 Received Heat Transfer 417 | . 42 375 Siege Activations . | . . . Martial Activations . | . . . Shielding Activations . | . . . Robots Disrupted . | . . . Combat Hostiles . | . . . Robots Corrupted . | . . . Combat Hostiles . | . . . Parts Fried . | . . . Impact Corruptions . | . . . Robots Melted . | . . . Combat Hostiles . | . . . Parts Melted 2 | . 2 . Heat Transferred 728 | . 481 247 Parts Sabotaged . | . . . Parts Stolen . | . . . Parts Stripped . | . . . Power Chain Reactions . | . . . Alert | -11 -10 -10 ------- Run | Yrd Mat Sub Maximum Alert Level . | . . . Low Security (%) 100 | 100 100 . Level 1 . | . . . Level 2 . | . . . Level 3 . | . . . Level 4 . | . . . Level 5 . | . . . High Security . | . . . Max Security . | . . . Peak Influence 61 | . 61 . Initial . | . . . Average 24 | . 29 . Influence Increases 232 | . 142 90 Destroy 0b10 Robot/C 140 | . 80 60 Destroy 0b10 Robot/NC 10 | . 10 . Destroy Leader 14 | . 14 . Successful Hack 7 | . 7 . Destroy Structure 1 | . 1 . Lose Combat Pursuer 60 | . 30 30 Influence Decreases 232 | . 95 137 Entered New Map 26 | . . 26 Time Decay 206 | . 95 111 Squads Dispatched . | . . . Investigation . | . . . Extermination . | . . . Reinforcement . | . . . Assault . | . . . Garrison . | . . . Intercept . | . . . Searches Triggered . | . . . Construction Impeded . | . . . Haulers Reinforced . | . . . Active Scanning Responses . | . . . Cargo Convoy Interrupts . | . . . Stealth | -11 -10 -10 --------- Run | Yrd Mat Sub Distress Signals 1 | . 1 . Communications Jammed . | . . . Distress Signals . | . . . Times Spotted 27 | . 11 16 Peak Tracking Total 8 | . 5 8 Tactical Retreats 3 | . 2 1 Traps | -11 -10 -10 ------- Run | Yrd Mat Sub Traps Triggered . | . . . Indirectly . | . . . Trap Hack Attempts . | . . . Triggered . | . . . Disarmed . | . . . Reprogrammed . | . . . Reused . | . . . Traps Extracted . | . . . Installed . | . . . Triggered . | . . . Machines | -11 -10 -10 ---------- Run | Yrd Mat Sub Machines Disabled . | . . . Max in Single Turn . | . . . Machines Repaired . | . . . Machines Dismantled . | . . . Machines Sabotaged . | . . . Overloaded Fab Kills . | . . . Hacking | -11 -10 -10 --------- Run | Yrd Mat Sub Machines Accessed 2 | . 2 . Terminals 2 | . 2 . Fabricators . | . . . Repair Stations . | . . . Recycling Units . | . . . Scanalyzers . | . . . Garrison Access . | . . . Total Hacks 8 | . 8 . Successful 4 | . 4 . Failed 4 | . 4 . Catastrophic 1 | . 1 . Database Lockouts . | . . . Manual 3 | . 3 . Terminals 8 | . 8 . Fabricators . | . . . Repair Stations . | . . . Recycling Units . | . . . Scanalyzers . | . . . Garrison Access . | . . . Terminal Hacks 3 | . 3 . Prototype ID Bank 1 | . 1 . Level Access Points 1 | . 1 . Zone Layout 1 | . 1 . Fabricator Hacks . | . . . Repair Station Hacks . | . . . Recycling Unit Hacks . | . . . Scanalyzer . | . . . Garrison Access Hacks . | . . . Unauthorized Hacks 1 | . 1 . Terminals 1 | . 1 . Botnet 1 | . 1 . Fabricators . | . . . Repair Stations . | . . . Recycling Units . | . . . Scanalyzers . | . . . Garrison Access . | . . . Data Cores Recovered . | . . . Used . | . . . Hacking Detections 2 | . 2 . Full Trace Events . | . . . Feedback Events . | . . . Feedback Blocked . | . . . Robot Schematics Acquired . | . . . Robots Built . | . . . Authchips . | . . . Time . | . . . Total Robot Build Rating . | . . . Part Schematics Acquired . | . . . Parts Built . | . . . Authchips . | . . . Time . | . . . Total Part Build Rating . | . . . Part Studies Acquired . | . . . Parts Repaired . | . . . Time . | . . . Parts Recycled . | . . . Recycled Matter . | . . . Retrieved Matter . | . . . Retrieved Components . | . . . Parts Scanalyzed . | . . . Part Schematics Acquired . | . . . Parts Damaged . | . . . Bothacking | -11 -10 -10 ------------ Run | Yrd Mat Sub Used RIF Installer . | . . . Robots Hacked . | . . . Non-combat . | . . . Combat . | . . . Robot Hacks Applied . | . . . Relay Couplers Released . | . . . Fabnet Peak Effective % . | . . . Robots Rewired . | . . . Allies Hacked . | . . . Hacks Repelled . | . . . Allies | -11 -10 -10 -------- Run | Yrd Mat Sub Total Allies . | . . . Largest Group . | . . . Highest-Rated Group . | . . . Highest-Rated Ally . | . . . Total Orders . | . . . Ally Attacks . | . . . Total Damage . | . . . Kills . | . . . Allies Corrupted . | . . . Allies Melted . | . . . Intel | -11 -10 -10 ------- Run | Yrd Mat Sub Active Infowar (turns) . | . . . Robot Analysis Total . | . . . Derelict Logs Recovered 1 | . . 1 Drone Launches . | . . . Drone Recoveries . | . . . Exploration | -11 -10 -10 ------------- Run | Yrd Mat Sub Turns Passed 684 | 47 242 395 Spaces Moved 327 | 35 141 151 Core 8 | 6 . 2 Treads . | . . . Legs 319 | 29 141 149 Wheels . | . . . Hover . | . . . Flight . | . . . Fastest Speed 50 | 50 120 100 Average Speed 149 | 108 120 187 Slowest Speed 200 | 120 120 200 Overloaded Moves . | . . . Propulsion Burnouts . | . . . Robots Hopped . | . . . Potential Cave-ins 3 | . . 3 Cave-ins Triggered . | . . . Exploration Rate (%) 13 | 3 30 6 Regions Visited 2 Branch Regions 1 Pre-discovered Areas . | . . . Known Exits Taken . | . . . Unknown Exits Taken 2 | 1 1 . Scrap Searched 1 | . . 1 Spaces Dug 1 | . . 1 Terrain Destroyed 1 | . . 1 Melee . | . . . Projectile 1 | . . 1 AOE . | . . . Terrain Rammed . | . . . Walls Destroyed . | . . . Machines Disabled . | . . . Actions | -11 -10 -10 --------- Run | Yrd Mat Sub Total 430 | 44 176 210 Wait 4 | . 2 2 Move 325 | 34 140 151 Hop . | . . . Pick Up 18 | 7 5 6 Fast Attach 1 | . 1 . Attach 14 | 3 4 7 Detach . | . . . Swap 7 | . 4 3 Drop 8 | . 2 6 Fire 53 | . 18 35 Melee . | . . . Ram . | . . . Kick . | . . . Crush . | . . . Escape Stasis . | . . . Rewire . | . . . Trap . | . . . Miscellaneous . | . . . Route ------- -11/Scrapyard -10/Materials (discovered 4 exits: Mat x3 / [*Sub]) -10/Subcaves (discovered 1 exit: [*Rec]) History --------- Turn | Location | Event 4 | -11/Scrapyard | Discovered new exit (range 16) 48 | -11/Scrapyard | Entered Materials 250 | -10/Materials | Identified exit to Materials 289 | -10/Materials | Discovered new exit (range 3) 290 | -10/Materials | Entered Subcaves 290 | -10/Subcaves | Discovered new exit (range 12) 316 | -10/Subcaves | Build established: Mutant 573 | -10/Subcaves | Learned Materials terminal intel 599 | -10/Subcaves | Ambushed by Subdweller buried in earth 635 | -10/Subcaves | Ambushed by swarm of Subdwellers 635 | -10/Subcaves | Ambushed by Subdwellers from Twisted Machinery 649 | -10/Subcaves | Ambushed by Subdwellers from Twisted Machinery 674 | -10/Subcaves | Core integrity fell below 50% 679 | -10/Subcaves | Core integrity fell below 20% 685 | -10/Subcaves | Destroyed by F4-F7G(R) with Subdweller Laser Last Messages --------------- Machinery. 00642_ Med. Laser destroyed. 00649_ XO-CWR(R) angrily emerges from the Twisted Machinery. 00655_ Aluminum Leg destroyed. 00656_ Subatomizers dissect the Lgt. Ion Engine. 00657_ Scrap Shield destroyed. 00657_ Aluminum Leg destroyed. 00660_ The unstable cave ceiling collapses. 00660_ Neutrino Core crushed. 00660_ Assault Rifle destroyed. 00666_ Subatomizers dissect the Lgt. Ion Engine, destroying it. 00666_ Assault Rifle destroyed. 00667_ Sub. Power Source destroyed. 00671_ Lgt. Armor Plating destroyed. 00673_ Acquired Sub. Laser. 00675_ Lgt. Ion Engine destroyed. 00679_ Subatomizers dissect the Sub. Optics. 00679_ Sub. Machine Gun destroyed. Map ----- +----------------------------------------------------+ | ??????????????# #??????????????????????????? | | ??????????????# # ##??????????????????????????? | | ??????????????#### #??????????????????????????? | | ?????????????????## ##??????????????????????????? | | ?????????????????# ##??????????????????????????? | | ?????????????????## #??????????????????????????? | | ??????????????????# #??????????????????????????? | | ??????????????????# ##??????????????????????????? | | ?????????????????## #???????????????????????????? | | ?????????????????# ##??????????????????????????? | | ?????????????????## #??????????????????????????? | | ?????????????????## ##??????????????????????????? | | ?????????????????# #???????????????????????????? | | ?????????????????# ##??????????????????????????? | | ?????????????????# #??????????????????????????? | | ?????????????????## #??????????????????????????? | | ?????????????????# ##??????????????????????????? | | ?????????????????## ##??????????????????????????? | | ?????????????????# ##?????????????????????????? | | ?????????????????# # #!###???????????????????????? | | ????????????????# ##### %#???????????????????????? | | ????????????????# ???#R#R#???????????????????????? | | ????????????????#????##R[##??????????????????????? | | ??????????????????????##RR#??????????????????????? | | ??????????????????????##R ##?????????????????????? | | ???????????????????????#R@ #?????????????????????? | | ??????????????????????#R ###?????????????????????? | | ?????????????????????# ##????????????????????????? | | ???????????????????? #??????????????????????????? | | ?????????????????? #???????????????????????????? | | ?????????????????# #????????????????????????????? | | ???????????????? ?????????????????????????????? | | ???????????????# ??????????????????????????????? | | ???????????????## ???????????????????????????????? | | ???????????????? ????????????????????????????????? | | ??????????????? ?????????????????????????????????? | | ?????????????? ??????????????????????????????????? | | ?????????????????????????????????????????????????? | | ?????????????????????????????????????????????????? | | ?????????????????????????????????????????????????? | | ?????????????????????????????????????????????????? | | ?????????????????????????????????????????????????? | | ?????????????????????????????????????????????????? | | ?????????????????????????????????????????????????? | | ?????????????????????????????????????????????????? | | ?????????????????????????????????????????????????? | | ?????????????????????????????????????????????????? | | ?????????????????????????????????????????????????? | | ?????????????????????????????????????????????????? | | ?????????????????????????????????????????????????? | +----------------------------------------------------+ Best States ------------- Heat Dissipation 25 Energy Generation 15 Energy Capacity 200 Matter Stores 300 Matter Capacity 300 Sight Range 16 Terrain Scan Density 10 Armor Coverage 800 Resistance: KI 20 Resistance: TH 20 Resistance: EX 20 Resistance: EM 20 Resistance: I 20 Resistance: S 20 Resistance: P 20 Evasion (%) 55 Targeting Accuracy 5 Offensive Hacking 10 Item Schematics ----------------- None Robot Schematics ------------------ None Fabricated ------------ Nothing Repaired ---------- Nothing Studied --------- None Alien Tech Used ----------------- None Achievements -------------- None Challenges ------------ None Game ------ Seed PhasingAerolevProcsplitter Manual? 0 Play Time 00:09:44 Cumulative 58.4 hours Start 2026.07.29 @ 15:32:05 End 2026.07.29 @ 15:38:20 Sessions 1 Manual Loads 0 Difficulty Adventurer Special Mode None Game No. 61 Rogue 4 Adventurer 57 Explorer 0 Win Type - Total 0 Types 0/0/0/0/0/0/0/0/0/0 Lore% 15 Gallery% 41 Achievement% 28 Wizard Run 0 Options --------- Layout 1 ASCII 0 Keyboard 0 Movement Mouse Keybinds 0 Fullscreen 1 Font 32/SmallcapsGlow Map View 50x35 Zoom Use 0% Tactical HUD 1 Map Filters NONE Filters NONE Steam 1 RUN: 7978a046-e878-4df9-a102-d705e4cf3dbd